fUSD/lending_fUSD_20250608
["ID","MTS","AMOUNT","RATE_DAILY","PERIOD"]
[364953789,1749350655325,-151.0,0.00019178,2]
[364953790,1749350655347,-151.0,0.00019178,2]
[364953791,1749350655370,-480.0,0.00019178,2]
[364953792,1749350655393,-151.0,0.00019178,2]
[364953793,1749350655414,-151.0,0.00019178,2]
[364953794,1749350655435,-151.0,0.00019178,2]
[364953795,1749350655456,-487.42104885,0.00019178,2]
[364953796,1749350655476,-151.0,0.00019178,2]
[364953797,1749350655497,-151.0,0.00019178,2]
[364953798,1749350655517,-151.0,0.00019178,2]
[364953799,1749350655538,-267.665496,0.00019178,2]
[364953800,1749350655558,-480.0,0.00019178,2]
[364953801,1749350655579,-480.0,0.00019178,2]
[364953802,1749350655600,-480.0,0.00019178,2]
[364953803,1749350655621,-488.70566863,0.00019178,2]
[364953804,1749350655642,-480.0,0.00019178,2]
[364953805,1749350655662,-480.0,0.00019178,2]
[364953806,1749350655683,-355.76064021,0.00019178,2]
[364953807,1749350655704,-503.57171997,0.00019178,2]
[364953808,1749350655726,-480.0,0.00019178,2]
[364953809,1749350655749,-488.46301734,0.00019178,2]
[364953810,1749350655770,-153.529159,0.00019178,2]
[364953811,1749350655791,-480.0,0.00019178,2]
[364953812,1749350655812,-512.43406704,0.00019178,2]
[364953813,1749350655833,-279.04919882,0.00019178,2]
[364953814,1749350655854,-480.0,0.00019178,2]
[364953815,1749350655876,-486.82890592,0.00019178,2]
[364953816,1749350655896,-480.0,0.00019178,2]
[364953817,1749350655920,-497.95039336,0.00019178,2]
[364953818,1749350655943,-480.0,0.00019178,2]
[364953819,1749350655965,-510.06272307,0.00019178,2]
[364953820,1749350655986,-496.20376778,0.00019178,2]
[364953821,1749350656008,-507.04171063,0.00019178,2]
[364953822,1749350656028,-480.0,0.00019178,2]
[364953823,1749350656052,-480.0,0.00019178,2]
[364953824,1749350656074,-251.0727205,0.00019178,2]
[364953825,1749350656096,-608.19434247,0.00019178,2]
[364953826,1749350656119,-480.0,0.00019178,2]
[364953827,1749350656142,-480.0,0.00019178,2]
[364953828,1749350656348,-480.0,0.00019178,2]
[364953829,1749350656373,-480.0,0.00019178,2]
[364953830,1749350656395,-151.0,0.00019178,2]
[364953831,1749350656416,-151.0,0.00019178,2]
[364953832,1749350656439,-151.0,0.00019178,2]
[364953833,1749350656461,-164.832722,0.00019178,2]
[364953834,1749350656484,-480.0,0.00019178,2]
[364953835,1749350656506,-480.0,0.00019178,2]
[364953836,1749350656528,-480.0,0.00019178,2]
[364953837,1749350656553,-494.55577391,0.00019178,2]
[364953838,1749350656576,-480.0,0.00019178,2]
[364953839,1749350656597,-480.0,0.00019178,2]
[364953840,1749350656620,-480.0,0.00019178,2]
[364953841,1749350656643,-480.0,0.00019178,2]
[364953842,1749350656666,-480.0,0.00019178,2]
[364953843,1749350656689,-437.85349285,0.00019178,2]
[364953844,1749350656711,-480.0,0.00019178,2]
[364953845,1749350656736,-501.3301226,0.00019178,2]
[364953846,1749350656757,-458.80605277,0.00019178,2]
[364953847,1749350656779,-480.0,0.00019178,2]
[364953848,1749350656802,-480.0,0.00019178,2]
[364953849,1749350656827,-501.20631174,0.00019178,2]
[364953850,1749350656848,-480.0,0.00019178,2]
[364953851,1749350656869,-480.0,0.00019178,2]
[364953852,1749350656891,-480.0,0.00019178,2]
[364953853,1749350656913,-480.0,0.00019178,2]
[364953854,1749350656934,-480.0,0.00019178,2]
[364953855,1749350656957,-489.40727302,0.00019178,2]
[364953856,1749350656978,-500.66535966,0.00019178,2]
[364953857,1749350657001,-504.49750146,0.00019178,2]
[364953858,1749350657024,-480.0,0.00019178,2]
[364953859,1749350657045,-486.34723044,0.00019178,2]
[364953860,1749350657068,-516.82624205,0.00019178,2]
[364953861,1749350657090,-480.0,0.00019178,2]
[364953862,1749350657112,-480.0,0.00019178,2]
[364953863,1749350657133,-150.0,0.00019178,2]
[364953864,1749350657157,-1132.72,0.00019178,2]
[364953865,1749350657179,-480.0,0.00019178,2]
[364953866,1749350657201,-151.0,0.00019178,2]
[364953867,1749350657226,-475.66931992,0.00019178,2]
[364953868,1749350657251,-489.48323082,0.00019178,2]
[364953869,1749350657274,-480.0,0.00019178,2]
[364953870,1749350657299,-480.0,0.00019178,2]
[364953871,1749350657322,-480.0,0.00019178,2]
[364953872,1749350657344,-480.0,0.00019178,2]
[364953873,1749350657365,-480.0,0.00019178,2]
[364953874,1749350657386,-500.40679169,0.00019178,2]
[364953875,1749350657407,-905.72,0.00019178,2]
[364953876,1749350657428,-492.24978182,0.00019178,2]
[364953877,1749350657450,-480.0,0.00019178,2]
[364953878,1749350657474,-482.66279617,0.00019178,2]
[364953879,1749350657498,-497.42017194,0.00019178,2]
[364953880,1749350657520,-480.0,0.00019178,2]
[364953881,1749350657543,-504.09211248,0.00019178,2]
[364953882,1749350657565,-480.0,0.00019178,2]
[364953883,1749350657587,-480.0,0.00019178,2]
[364953884,1749350657609,-480.0,0.00019178,2]
[364953885,1749350657633,-480.0,0.00019178,2]
[364953886,1749350657656,-480.0,0.00019178,2]
[364953887,1749350657678,-480.0,0.00019178,2]
[364953888,1749350657700,-480.0,0.00019178,2]
[364953889,1749350657724,-480.0,0.00019178,2]
[364953890,1749350657759,-493.77146418,0.00019178,2]
[364953891,1749350657780,-480.0,0.00019178,2]
[364953892,1749350657802,-480.0,0.00019178,2]
[364953893,1749350657823,-480.0,0.00019178,2]
[364953894,1749350657846,-480.0,0.00019178,2]
[364953895,1749350657871,-480.0,0.00019178,2]
[364953896,1749350657891,-480.0,0.00019178,2]
[364953897,1749350657916,-480.0,0.00019178,2]
[364953898,1749350657938,-621.96292828,0.00019178,2]
[364953899,1749350657959,-497.03539636,0.00019178,2]
[364953900,1749350657979,-480.0,0.00019178,2]
[364953901,1749350658000,-480.0,0.00019178,2]
[364953902,1749350658024,-480.0,0.00019178,2]
[364953903,1749350658046,-480.0,0.00019178,2]
[364953904,1749350658067,-495.73029389,0.00019178,2]
[364953905,1749350658088,-497.32621633,0.00019178,2]
[364953906,1749350658108,-501.2696414,0.00019178,2]
[364953907,1749350658130,-480.0,0.00019178,2]
[364953908,1749350658152,-480.0,0.00019178,2]
[364953909,1749350658174,-480.0,0.00019178,2]
[364953910,1749350658195,-480.0,0.00019178,2]
[364953911,1749350658216,-480.0,0.00019178,2]
[364953912,1749350658239,-480.0,0.00019178,2]
[364953913,1749350658262,-530.66984039,0.00019178,2]
[364953914,1749350658284,-480.0,0.00019178,2]
[364953915,1749350658307,-261.00990544,0.00019178,2]
[364953916,1749350658330,-501.28197196,0.00019178,2]
[364953917,1749350658351,-480.0,0.00019178,2]
[364953918,1749350658373,-480.0,0.00019178,2]
[364953919,1749350658395,-152.12453209,0.00019178,2]
[364953920,1749350658417,-480.0,0.00019178,2]
[364953921,1749350658439,-516.6355081,0.00019178,2]
[364953922,1749350658462,-505.88939472,0.00019178,2]
[364953923,1749350658484,-434.75491165,0.00019178,2]
[364953924,1749350658508,-292.39980323,0.00019178,2]
[364953925,1749350658531,-475.14800086,0.00019178,2]
[364953926,1749350658552,-480.0,0.00019178,2]
[364953927,1749350658575,-480.0,0.00019178,2]
[364953928,1749350658598,-480.0,0.00019178,2]
[364953929,1749350658620,-480.0,0.00019178,2]
[364953930,1749350658641,-505.91597644,0.00019178,2]
[364953931,1749350658663,-156.070911,0.00019178,2]
[364953932,1749350658685,-511.77934767,0.00019178,2]
[364953933,1749350658707,-480.0,0.00019178,2]
[364953934,1749350658733,-480.0,0.00019178,2]
[364953935,1749350658756,-509.23409438,0.00019178,2]
[364953936,1749350658780,-753.05,0.00019178,2]
[364953937,1749350658802,-364.59556085,0.00019178,2]
[364953938,1749350658825,-151.0,0.00019178,2]
[364953939,1749350658847,-151.0,0.00019178,2]
[364953940,1749350658869,-500.11927823,0.00019178,2]
[364953941,1749350658890,-192.13282865,0.00019178,2]
[364953942,1749350658912,-424.26069145,0.00019178,2]
[364953943,1749350658936,-480.0,0.00019178,2]
[364953944,1749350658957,-480.0,0.00019178,2]
[364953945,1749350658980,-480.0,0.00019178,2]
[364953946,1749350659004,-480.0,0.00019178,2]
[364953947,1749350659026,-504.46476647,0.00019178,2]
[364953948,1749350659048,-480.0,0.00019178,2]
[364953949,1749350659073,-480.0,0.00019178,2]
[364953950,1749350659096,-480.0,0.00019178,2]
[364953951,1749350659118,-480.0,0.00019178,2]
[364953952,1749350659139,-490.29840527,0.00019178,2]
[364953953,1749350659162,-480.0,0.00019178,2]
[364953954,1749350659183,-480.0,0.00019178,2]
[364953955,1749350659204,-518.2850984,0.00019178,2]
[364953956,1749350659226,-480.0,0.00019178,2]
[364953957,1749350659248,-459.68657213,0.00019178,2]
[364953958,1749350659270,-480.0,0.00019178,2]
[364953959,1749350659292,-480.0,0.00019178,2]
[364953960,1749350659315,-480.0,0.00019178,2]
[364953961,1749350659337,-466.55825033,0.00019178,2]
[364953962,1749350659359,-480.0,0.00019178,2]
[364953963,1749350659381,-480.0,0.00019178,2]
[364953964,1749350659404,-480.0,0.00019178,2]
[364953965,1749350659427,-480.0,0.00019178,2]
[364953966,1749350659449,-466.45487215,0.00019178,2]
[364953967,1749350659475,-480.0,0.00019178,2]
[364953968,1749350659498,-151.0,0.00019178,2]
[364953969,1749350659522,-153.878381,0.00019178,2]
[364953970,1749350659545,-491.10897284,0.00019178,2]
[364953971,1749350659718,-472.49415282,0.00019178,2]
[364953972,1749350659771,-480.0,0.00019178,2]
[364953973,1749350659796,-480.0,0.00019178,2]
[364953974,1749350659820,-480.0,0.00019178,2]
[364953975,1749350659843,-480.0,0.00019178,2]
[364953976,1749350659865,-486.42482468,0.00019178,2]
[364953977,1749350659888,-519.89302371,0.00019178,2]
[364953978,1749350659912,-433.48564958,0.00019178,2]
[364953979,1749350659933,-480.0,0.00019178,2]
[364953980,1749350659956,-480.0,0.00019178,2]
[364953981,1749350659980,-468.02389801,0.00019178,2]
[364953982,1749350660005,-480.0,0.00019178,2]
[364953983,1749350660028,-504.41248095,0.00019178,2]
[364953984,1749350660052,-472.70081118,0.00019178,2]
[364953985,1749350660077,-480.0,0.00019178,2]
[364953986,1749350660100,-480.0,0.00019178,2]
[364953987,1749350660121,-493.53488397,0.00019178,2]
[364953988,1749350660142,-469.55366551,0.00019178,2]
[364953989,1749350660166,-480.0,0.00019178,2]
[364953990,1749350660188,-385.35986499,0.00019178,2]
[364953991,1749350660210,-472.1317648,0.00019178,2]
[364953992,1749350660234,-480.0,0.00019178,2]
[364953993,1749350660257,-480.0,0.00019178,2]
[364953994,1749350660282,-500.0,0.00019178,2]
[364953995,1749350660304,-516.93254963,0.00019178,2]
[364953996,1749350660329,-480.0,0.00019178,2]
[364953997,1749350660353,-480.0,0.00019178,2]
[364953998,1749350660375,-498.99017698,0.00019178,2]
[364953999,1749350660398,-480.0,0.00019178,2]
[364954000,1749350660419,-492.65775853,0.00019178,2]
[364954001,1749350660440,-489.98492269,0.00019178,2]
[364954002,1749350660462,-480.0,0.00019178,2]
[364954003,1749350660483,-480.0,0.00019178,2]
[364954004,1749350660506,-480.0,0.00019178,2]
[364954005,1749350660529,-480.0,0.00019178,2]
[364954006,1749350660551,-480.0,0.00019178,2]
[364954007,1749350660572,-1573.76,0.00019178,2]
[364954008,1749350660593,-867.61,0.00019178,2]
[364954009,1749350660616,-480.0,0.00019178,2]
[364954010,1749350660638,-1573.76,0.00019178,2]
[364954011,1749350660660,-482.07572887,0.00019178,2]
[364954012,1749350660682,-484.75478068,0.00019178,2]
[364954013,1749350660703,-480.0,0.00019178,2]
[364954014,1749350660724,-480.0,0.00019178,2]
[364954015,1749350660748,-480.0,0.00019178,2]
[364954016,1749350660772,-480.0,0.00019178,2]
[364954017,1749350660796,-480.0,0.00019178,2]
[364954018,1749350660820,-480.0,0.00019178,2]
[364954019,1749350660843,-480.0,0.00019178,2]
[364954020,1749350660865,-480.0,0.00019178,2]
[364954021,1749350660886,-490.51840265,0.00019178,2]
[364954022,1749350660907,-302.2401585,0.00019178,2]
[364954023,1749350660930,-480.0,0.00019178,2]
[364954024,1749350660952,-463.82694075,0.00019178,2]
[364954025,1749350660975,-480.0,0.00019178,2]
[364954026,1749350660997,-480.0,0.00019178,2]
[364954027,1749350661020,-480.0,0.00019178,2]
[364954028,1749350661041,-493.12283615,0.00019178,2]
[364954029,1749350661063,-480.0,0.00019178,2]
[364954030,1749350661085,-480.0,0.00019178,2]
[364954031,1749350661107,-480.0,0.00019178,2]
[364954032,1749350661129,-480.0,0.00019178,2]
[364954033,1749350661151,-470.54395379,0.00019178,2]
[364954034,1749350661173,-480.0,0.00019178,2]
[364954035,1749350661195,-480.0,0.00019178,2]
[364954036,1749350661217,-480.0,0.00019178,2]
[364954037,1749350661239,-480.0,0.00019178,2]
[364954038,1749350661261,-480.0,0.00019178,2]
[364954039,1749350661283,-488.41726492,0.00019178,2]
[364954040,1749350661304,-480.0,0.00019178,2]
[364954041,1749350661326,-480.0,0.00019178,2]
[364954042,1749350661347,-480.0,0.00019178,2]
[364954043,1749350661368,-152.892831,0.00019178,2]
[364954044,1749350661388,-568.51195038,0.00019178,2]
[364954045,1749350661409,-480.0,0.00019178,2]
[364954046,1749350661431,-151.0,0.00019178,2]
[364954047,1749350661452,-498.73827573,0.00019178,2]
[364954048,1749350661474,-151.0,0.00019178,2]
[364954049,1749350661497,-151.0,0.00019178,2]
[364954050,1749350661519,-151.0,0.00019178,2]
[364954051,1749350661540,-151.0,0.00019178,2]
[364954052,1749350661563,-151.0,0.00019178,2]
[364954053,1749350661586,-480.0,0.00019178,2]
[364954054,1749350661609,-151.0,0.00019178,2]
[364954055,1749350661632,-151.0,0.00019178,2]
[364954056,1749350661655,-151.0,0.00019178,2]
[364954057,1749350661685,-151.0,0.00019178,2]
[364954058,1749350661710,-151.0,0.00019178,2]
[364954059,1749350661733,-254.386268,0.00019178,2]
[364954060,1749350661758,-480.0,0.00019178,2]
[364954061,1749350661780,-480.0,0.00019178,2]
[364954062,1749350661803,-499.59276156,0.00019178,2]
[364954063,1749350661830,-1237.9,0.00019178,2]
[364954064,1749350661852,-480.0,0.00019178,2]
[364954065,1749350661873,-480.0,0.00019178,2]
[364954066,1749350661894,-579.09,0.00019178,2]
[364954067,1749350661916,-480.0,0.00019178,2]
[364954068,1749350661938,-480.0,0.00019178,2]
[364954069,1749350661961,-480.0,0.00019178,2]
[364954070,1749350661985,-491.96576247,0.00019178,2]
[364954071,1749350662007,-480.0,0.00019178,2]
[364954072,1749350662030,-480.0,0.00019178,2]
[364954073,1749350662052,-480.0,0.00019178,2]
[364954074,1749350662074,-335.52805092,0.00019178,2]
[364954075,1749350662096,-480.0,0.00019178,2]
[364954076,1749350662118,-480.0,0.00019178,2]
[364954077,1749350662140,-491.42,0.00019178,2]
[364954078,1749350662163,-480.0,0.00019178,2]
[364954079,1749350662185,-494.01765619,0.00019178,2]
[364954080,1749350662210,-2223.94,0.00019178,2]
[364954081,1749350662231,-491.11562715,0.00019178,2]
[364954082,1749350662254,-480.0,0.00019178,2]
[364954083,1749350662276,-491.24583023,0.00019178,2]
[364954084,1749350662300,-480.0,0.00019178,2]
[364954085,1749350662321,-697.0,0.00019178,2]
[364954086,1749350662343,-480.0,0.00019178,2]
[364954087,1749350662366,-480.0,0.00019178,2]
[364954088,1749350662389,-480.0,0.00019178,2]
[364954089,1749350662412,-480.0,0.00019178,2]
[364954090,1749350662439,-692.95,0.00019178,2]
[364954091,1749350662461,-527.0048306,0.00019178,2]
[364954092,1749350662488,-487.47504051,0.00019178,2]
[364954093,1749350662512,-480.0,0.00019178,2]
[364954094,1749350662535,-1042.45,0.00019178,2]
[364954095,1749350662557,-480.0,0.00019178,2]
[364954096,1749350662579,-480.0,0.00019178,2]
[364954097,1749350662601,-480.0,0.00019178,2]
[364954098,1749350662624,-480.0,0.00019178,2]
[364954099,1749350662647,-1070.56,0.00019178,2]
[364954100,1749350662669,-480.0,0.00019178,2]
[364954101,1749350662691,-480.0,0.00019178,2]
[364954102,1749350662714,-480.0,0.00019178,2]
[364954103,1749350662737,-480.0,0.00019178,2]
[364954104,1749350662762,-492.21587445,0.00019178,2]
[364954105,1749350662785,-480.0,0.00019178,2]
[364954106,1749350662808,-480.0,0.00019178,2]
[364954107,1749350662832,-466.53931177,0.00019178,2]
[364954108,1749350662856,-494.8452884,0.00019178,2]
[364954109,1749350663064,-480.0,0.00019178,2]
[364954110,1749350663088,-1000.0,0.00019178,2]
[364954111,1749350663112,-480.0,0.00019178,2]
[364954112,1749350663134,-480.0,0.00019178,2]
[364954113,1749350663156,-480.0,0.00019178,2]
[364954114,1749350663176,-480.0,0.00019178,2]
[364954115,1749350663199,-480.0,0.00019178,2]
[364954116,1749350663220,-480.0,0.00019178,2]
[364954117,1749350663243,-153.284783,0.00019178,2]
[364954118,1749350663263,-496.57,0.00019178,2]
[364954119,1749350663286,-480.0,0.00019178,2]
[364954120,1749350663308,-165.22687,0.00019178,2]
[364954121,1749350663330,-480.0,0.00019178,2]
[364954122,1749350663351,-480.0,0.00019178,2]
[364954123,1749350663374,-480.0,0.00019178,2]
[364954124,1749350663395,-480.0,0.00019178,2]
[364954125,1749350663418,-480.0,0.00019178,2]
[364954126,1749350663440,-480.0,0.00019178,2]
[364954127,1749350663462,-480.0,0.00019178,2]
[364954128,1749350663484,-480.0,0.00019178,2]
[364954129,1749350663506,-480.0,0.00019178,2]
[364954130,1749350663529,-576.26211658,0.00019178,2]
[364954131,1749350663551,-480.0,0.00019178,2]
[364954132,1749350663574,-494.50121921,0.00019178,2]
[364954133,1749350663596,-480.0,0.00019178,2]
[364954134,1749350663617,-480.0,0.00019178,2]
[364954135,1749350663639,-256.81110754,0.00019178,2]
[364954136,1749350663661,-480.0,0.00019178,2]
[364954137,1749350663683,-480.0,0.00019178,2]
[364954138,1749350663706,-5042.71,0.00019178,2]
[364954139,1749350663728,-480.0,0.00019178,2]
[364954140,1749350663753,-250.10195449,0.00019178,2]
[364954141,1749350663775,-480.0,0.00019178,2]
[364954142,1749350663796,-480.0,0.00019178,2]
[364954143,1749350663818,-488.29843537,0.00019178,2]
[364954144,1749350663841,-480.0,0.00019178,2]
[364954145,1749350663863,-480.0,0.00019178,2]
[364954146,1749350663885,-500.34139933,0.00019178,2]
[364954147,1749350663906,-480.0,0.00019178,2]
[364954148,1749350663929,-2974.85,0.00019178,2]
[364954149,1749350663955,-545.48632947,0.00019178,2]
[364954150,1749350663977,-480.0,0.00019178,2]
[364954151,1749350663999,-480.0,0.00019178,2]
[364954152,1749350664020,-480.0,0.00019178,2]
[364954153,1749350664042,-480.0,0.00019178,2]
[364954154,1749350664064,-225.77942352,0.00019178,2]
[364954155,1749350664087,-480.0,0.00019178,2]
[364954156,1749350664109,-480.0,0.00019178,2]
[364954157,1749350664131,-486.68955392,0.00019178,2]
[364954158,1749350664152,-480.0,0.00019178,2]
[364954159,1749350664174,-486.95031491,0.00019178,2]
[364954160,1749350664196,-480.0,0.00019178,2]
[364954161,1749350664217,-480.0,0.00019178,2]
[364954162,1749350664242,-480.0,0.00019178,2]
[364954163,1749350664264,-635.03,0.00019178,2]
[364954164,1749350664286,-480.0,0.00019178,2]
[364954165,1749350664308,-504.77504834,0.00019178,2]
[364954166,1749350664329,-480.0,0.00019178,2]
[364954167,1749350664352,-480.0,0.00019178,2]
[364954168,1749350664378,-480.0,0.00019178,2]
[364954169,1749350664401,-488.32092977,0.00019178,2]
[364954170,1749350664423,-480.0,0.00019178,2]
[364954171,1749350664444,-480.0,0.00019178,2]
[364954172,1749350664466,-480.0,0.00019178,2]
[364954173,1749350664487,-480.0,0.00019178,2]
[364954174,1749350664511,-215.08766346,0.00019178,2]
[364954175,1749350664537,-480.0,0.00019178,2]
[364954176,1749350664564,-480.0,0.00019178,2]
[364954177,1749350664588,-480.0,0.00019178,2]
[364954178,1749350664610,-480.0,0.00019178,2]
[364954179,1749350664633,-863.99,0.00019178,2]
[364954180,1749350664654,-226.51746107,0.00019178,2]
[364954181,1749350664677,-480.0,0.00019178,2]
[364954182,1749350664698,-480.0,0.00019178,2]
[364954183,1749350664720,-480.0,0.00019178,2]
[364954184,1749350664745,-831.44,0.00019178,2]
[364954185,1749350664768,-155.752825,0.00019178,2]
[364954186,1749350664790,-663.88,0.00019178,2]
[364954187,1749350664812,-489.78567011,0.00019178,2]
[364954188,1749350664837,-480.0,0.00019178,2]
[364954189,1749350664860,-426.92606496,0.00019178,2]
[364954190,1749350664882,-436.6600404,0.00019178,2]
[364954191,1749350664904,-480.0,0.00019178,2]
[364954192,1749350664925,-480.0,0.00019178,2]
[364954193,1749350664945,-481.84153269,0.00019178,2]
[364954194,1749350664966,-163.67194531,0.00019178,2]
[364954195,1749350664987,-472.6705255,0.00019178,2]
[364954196,1749350665008,-480.0,0.00019178,2]
[364954197,1749350665029,-480.0,0.00019178,2]
[364954198,1749350665050,-499.44227768,0.00019178,2]
[364954199,1749350665072,-480.0,0.00019178,2]
[364954200,1749350665095,-480.0,0.00019178,2]
[364954201,1749350665116,-420.0,0.00019178,2]
[364954202,1749350665137,-480.0,0.00019178,2]
[364954203,1749350665158,-480.0,0.00019178,2]
[364954204,1749350665180,-809.47,0.00019178,2]
[364954205,1749350665202,-480.0,0.00019178,2]
[364954206,1749350665224,-480.0,0.00019178,2]
[364954207,1749350665244,-460.0,0.00019178,2]
[364954208,1749350665265,-480.0,0.00019178,2]
[364954209,1749350665287,-480.0,0.00019178,2]
[364954210,1749350665310,-480.0,0.00019178,2]
[364954211,1749350665332,-485.53244891,0.00019178,2]
[364954212,1749350665354,-492.41083088,0.00019178,2]
[364954213,1749350665377,-480.0,0.00019178,2]
[364954214,1749350665399,-480.0,0.00019178,2]
[364954215,1749350665420,-460.0,0.00019178,2]
[364954216,1749350665441,-480.0,0.00019178,2]
[364954217,1749350665464,-480.0,0.00019178,2]
[364954218,1749350665486,-483.38123731,0.00019178,2]
[364954219,1749350665508,-480.0,0.00019178,2]
[364954220,1749350665530,-480.0,0.00019178,2]
[364954221,1749350665554,-480.0,0.00019178,2]
[364954222,1749350665576,-480.0,0.00019178,2]
[364954223,1749350665598,-468.37850081,0.00019178,2]
[364954224,1749350665620,-480.0,0.00019178,2]
[364954225,1749350665641,-480.0,0.00019178,2]
[364954226,1749350665663,-436.1938546,0.00019178,2]
[364954227,1749350665685,-480.0,0.00019178,2]
[364954228,1749350665713,-1950.95,0.00019178,2]
[364954229,1749350665737,-480.0,0.00019178,2]
[364954230,1749350665764,-480.0,0.00019178,2]
[364954231,1749350665789,-480.0,0.00019178,2]
[364954232,1749350665813,-480.0,0.00019178,2]
[364954233,1749350665838,-482.05643944,0.00019178,2]
[364954234,1749350665862,-480.0,0.00019178,2]
[364954235,1749350665884,-480.0,0.00019178,2]
[364954236,1749350665907,-480.0,0.00019178,2]
[364954237,1749350665930,-480.0,0.00019178,2]
[364954238,1749350665953,-480.0,0.00019178,2]
[364954239,1749350665977,-526.9400311,0.00019178,2]
[364954240,1749350666002,-478.22255,0.00019178,2]
[364954241,1749350666265,-480.0,0.00019178,2]
[364954242,1749350666291,-428.62936028,0.00019178,2]
[364954243,1749350666315,-480.0,0.00019178,2]
[364954244,1749350666338,-480.0,0.00019178,2]
[364954245,1749350666363,-480.0,0.00019178,2]
[364954246,1749350666385,-534.37891532,0.00019178,2]
[364954247,1749350666411,-565.22938911,0.00019178,2]
[364954248,1749350666440,-182.199989,0.00019178,2]
[364954249,1749350666464,-480.0,0.00019178,2]
[364954250,1749350666489,-480.0,0.00019178,2]
[364954251,1749350666512,-570.79842541,0.00019178,2]
[364954252,1749350666535,-480.0,0.00019178,2]
[364954253,1749350666560,-1189.64,0.00019178,2]
[364954254,1749350666585,-557.2697402,0.00019178,2]
[364954255,1749350666608,-480.0,0.00019178,2]
[364954256,1749350666632,-345.68314268,0.00019178,2]
[364954257,1749350666658,-1349.14,0.00019178,2]
[364954258,1749350666683,-480.0,0.00019178,2]
[364954259,1749350666705,-480.0,0.00019178,2]
[364954260,1749350666730,-20.75255634,0.00019178,2]
[364954261,1749350725272,-250.0,0.00019,2]
[364954262,1749350725297,-1162.98,0.000191,2]
[364954263,1749350725319,-151.03,0.000191,2]
[364954264,1749350725341,-500.0,0.00019173,2]
[364954265,1749350725366,-500.0,0.00019173,2]
[364954266,1749350725622,-1200.0,0.00019177,2]
[364954267,1749350725651,-459.24744366,0.00019178,2]
[364954268,1749350725674,-480.0,0.00019178,2]
[364954269,1749350725695,-480.0,0.00019178,2]
[364954270,1749350725717,-480.0,0.00019178,2]
[364954271,1749350725740,-480.0,0.00019178,2]
[364954272,1749350725761,-506.52262082,0.00019178,2]
[364954273,1749350725782,-480.0,0.00019178,2]
[364954274,1749350725808,-1198.2,0.00019178,2]
[364954275,1749350725831,-151.0,0.00019178,2]
[364954276,1749350725859,-300.65496705,0.00019178,2]
[364954277,1749350725881,-151.0,0.00019178,2]
[364954278,1749350725906,-624.42,0.00019178,2]
[364954279,1749350725928,-151.0,0.00019178,2]
[364954280,1749350725951,-156.335894,0.00019178,2]
[364954281,1749350725972,-480.0,0.00019178,2]
[364954282,1749350725994,-480.0,0.00019178,2]
[364954283,1749350726016,-480.0,0.00019178,2]
[364954284,1749350726040,-480.0,0.00019178,2]
[364954285,1749350726060,-480.0,0.00019178,2]
[364954286,1749350726081,-480.0,0.00019178,2]
[364954287,1749350726102,-80358.54,0.00019178,2]
[364954288,1749350726122,-480.0,0.00019178,2]